[Event "Titled Tuesday Blitz April 19 Late 2022"]
[White "Timofeev, Artyom"]
[Black "Tregubov, Pavel V."]
[WhiteFideId "4140419"]
[BlackFideId "4115341"]
[WhiteElo "2594"]
[BlackElo "2341"]
[Result "1-0"]
[Round "11"]
[TimeControl "180+1"]
[Date "2022.04.19"]
[WhiteClock "0:00:22"]
[BlackClock "0:00:01"]

1. e4 {[%clk 0:02:53]}  e5 {[%clk 0:02:59]} 2. Nf3 {[%clk 0:02:53]}  Nf6 {[%clk 0:02:59]} 3. Nxe5 {[%clk 0:02:52]}  d6 {[%clk 0:02:59]} 4. Nf3 {[%clk 0:02:52]}  Nxe4 {[%clk 0:02:59]} 5. Qe2 {[%clk 0:02:52]}  Qe7 {[%clk 0:02:59]} 6. d3 {[%clk 0:02:52]}  Nf6 {[%clk 0:02:57]} 7. Bg5 {[%clk 0:02:53]}  Nbd7 {[%clk 0:02:51]} 8. Nc3 {[%clk 0:02:51]}  c6 {[%clk 0:02:49]} 9. O-O-O {[%clk 0:02:50]}  Qxe2 {[%clk 0:02:49]} 10. Bxe2 {[%clk 0:02:50]}  h6 {[%clk 0:02:46]} 11. Bd2 {[%clk 0:02:48]}  d5 {[%clk 0:02:39]} 12. h3 {[%clk 0:02:47]}  Bd6 {[%clk 0:02:37]} 13. g4 {[%clk 0:02:46]}  Nc5 {[%clk 0:02:26]} 14. Rdg1 {[%clk 0:02:41]}  Ne6 {[%clk 0:02:23]} 15. Bd1 {[%clk 0:02:40]}  Bd7 {[%clk 0:02:20]} 16. Ne2 {[%clk 0:02:33]}  O-O-O {[%clk 0:02:18]} 17. Nfd4 {[%clk 0:02:33]}  Nxd4 {[%clk 0:02:17]} 18. Nxd4 {[%clk 0:02:33]}  g6 {[%clk 0:02:00]} 19. c3 {[%clk 0:02:22]}  Rde8 {[%clk 0:01:59]} 20. Kc2 {[%clk 0:02:21]}  h5 {[%clk 0:01:55]} 21. Bg5 {[%clk 0:02:07]}  Nh7 {[%clk 0:01:52]} 22. Be3 {[%clk 0:02:07]}  hxg4 {[%clk 0:01:42]} 23. hxg4 {[%clk 0:02:07]}  Nf6 {[%clk 0:01:42]} 24. Rxh8 {[%clk 0:01:49]}  Rxh8 {[%clk 0:01:42]} 25. Bg5 {[%clk 0:01:49]}  Ne8 {[%clk 0:01:22]} 26. Kd2 {[%clk 0:01:40]}  Rh2 {[%clk 0:01:14]} 27. Ke1 {[%clk 0:01:37]}  Ng7 {[%clk 0:01:11]} 28. Bf6 {[%clk 0:01:25]}  Ne8 {[%clk 0:01:08]} 29. Bg5 {[%clk 0:01:25]}  Nc7 {[%clk 0:01:02]} 30. Be3 {[%clk 0:01:09]}  Rh3 {[%clk 0:00:51]} 31. b4 {[%clk 0:00:59]}  Ne6 {[%clk 0:00:45]} 32. Nxe6 {[%clk 0:00:55]}  Bxe6 {[%clk 0:00:46]} 33. Kd2 {[%clk 0:00:53]}  b6 {[%clk 0:00:45]} 34. Bb3 {[%clk 0:00:44]}  Kd7 {[%clk 0:00:43]} 35. a4 {[%clk 0:00:44]}  c5 {[%clk 0:00:31]} 36. bxc5 {[%clk 0:00:43]}  bxc5 {[%clk 0:00:30]} 37. Bc2 {[%clk 0:00:43]}  Kc6 {[%clk 0:00:29]} 38. a5 {[%clk 0:00:42]}  Be5 {[%clk 0:00:26]} 39. Ba4+ {[%clk 0:00:42]}  Kd6 {[%clk 0:00:26]} 40. d4 {[%clk 0:00:41]}  cxd4 {[%clk 0:00:25]} 41. cxd4 {[%clk 0:00:41]}  Bf6 {[%clk 0:00:17]} 42. g5 {[%clk 0:00:39]}  Bd8 {[%clk 0:00:16]} 43. a6 {[%clk 0:00:34]}  Ba5+ {[%clk 0:00:15]} 44. Ke2 {[%clk 0:00:35]}  Bc8 {[%clk 0:00:10]} 45. Bb5 {[%clk 0:00:32]}  Bb6 {[%clk 0:00:10]} 46. Rc1 {[%clk 0:00:31]}  Bg4+ {[%clk 0:00:09]} 47. Kd2 {[%clk 0:00:29]}  Ba5+ {[%clk 0:00:08]} 48. Kc2 {[%clk 0:00:29]}  Rh8 {[%clk 0:00:05]} 49. Kb3 {[%clk 0:00:28]}  Rc8 {[%clk 0:00:05]} 50. Bf4+ {[%clk 0:00:25]}  Ke7 {[%clk 0:00:03]} 51. Rxc8 {[%clk 0:00:23]}  Bxc8 {[%clk 0:00:02]} 52. Be5 {[%clk 0:00:23]}  Bb6 {[%clk 0:00:02]} 53. Kb4 {[%clk 0:00:23]}  Ke6 {[%clk 0:00:01]} 54. Bf1 {[%clk 0:00:22]} 1-0


[Site "https://www.chess.com"]

[Event "Titled Tuesday Blitz April 19 Late 2022"]
[White "Vlassov, Nikolai"]
[Black "Sarana, Alexey"]
[WhiteFideId "4103360"]
[BlackFideId "24133795"]
[WhiteElo "2407"]
[BlackElo "2666"]
[Result "1-0"]
[Round "11"]
[TimeControl "180+1"]
[Date "2022.04.19"]
[WhiteClock "0:01:37"]
[BlackClock "0:02:02"]

1. e4 {[%clk 0:03:00]}  c5 {[%clk 0:03:00]} 2. c3 {[%clk 0:03:01]}  d5 {[%clk 0:02:59]} 3. exd5 {[%clk 0:03:01]}  Qxd5 {[%clk 0:03:00]} 4. d4 {[%clk 0:03:01]}  Nf6 {[%clk 0:03:00]} 5. Nf3 {[%clk 0:03:02]}  Nc6 {[%clk 0:02:58]} 6. Be3 {[%clk 0:03:01]}  cxd4 {[%clk 0:02:56]} 7. cxd4 {[%clk 0:03:02]}  e6 {[%clk 0:02:56]} 8. a3 {[%clk 0:03:02]}  Be7 {[%clk 0:02:56]} 9. Nc3 {[%clk 0:03:02]}  Qd6 {[%clk 0:02:55]} 10. Qc2 {[%clk 0:03:03]}  O-O {[%clk 0:02:54]} 11. Bd3 {[%clk 0:03:03]}  Bd7 {[%clk 0:02:48]} 12. O-O {[%clk 0:03:01]}  Rac8 {[%clk 0:02:49]} 13. Qd2 {[%clk 0:03:01]}  Rfd8 {[%clk 0:02:47]} 14. Bf4 {[%clk 0:03:01]}  Nxd4 {[%clk 0:02:28]} 15. Bxd6 {[%clk 0:02:58]}  Nxf3+ {[%clk 0:02:27]} 16. gxf3 {[%clk 0:02:58]}  Bxd6 {[%clk 0:02:28]} 17. Bxh7+ {[%clk 0:02:51]}  Nxh7 {[%clk 0:02:28]} 18. Qxd6 {[%clk 0:02:52]}  Bc6 {[%clk 0:02:28]} 19. Qf4 {[%clk 0:02:49]}  Rd3 {[%clk 0:02:27]} 20. Ne4 {[%clk 0:02:44]}  Rcd8 {[%clk 0:02:27]} 21. Rac1 {[%clk 0:02:38]}  f5 {[%clk 0:02:23]} 22. Ng5 {[%clk 0:02:30]}  R8d4 {[%clk 0:02:12]} 23. Qg3 {[%clk 0:02:01]}  Nxg5 {[%clk 0:02:11]} 24. Qxg5 {[%clk 0:02:00]}  Rxf3 {[%clk 0:02:11]} 25. Rxc6 {[%clk 0:01:56]}  bxc6 {[%clk 0:02:11]} 26. Kh1 {[%clk 0:01:52]}  Rh3 {[%clk 0:02:10]} 27. Rg1 {[%clk 0:01:48]}  Rd7 {[%clk 0:02:11]} 28. Qg6 {[%clk 0:01:47]}  Re7 {[%clk 0:02:11]} 29. Qf6 {[%clk 0:01:42]}  Rf7 {[%clk 0:02:01]} 30. Qxe6 {[%clk 0:01:38]}  Rh6 {[%clk 0:02:02]} 31. Qxh6 {[%clk 0:01:37]} 1-0


[Site "https://www.chess.com"]

[Event "Titled Tuesday Blitz April 19 Late 2022"]
[White "Wagner, Dennis"]
[Black "Jobava, Baadur"]
[WhiteFideId "24650684"]
[BlackFideId "13601520"]
[WhiteElo "2355"]
[BlackElo "2617"]
[Result "0-1"]
[Round "11"]
[TimeControl "180+1"]
[Date "2022.04.19"]
[WhiteClock "0:00:01"]
[BlackClock "0:00:50"]

1. e4 {[%clk 0:03:00]}  e6 {[%clk 0:02:59]} 2. d4 {[%clk 0:02:59]}  d5 {[%clk 0:03:00]} 3. Nc3 {[%clk 0:02:59]}  dxe4 {[%clk 0:03:00]} 4. Nxe4 {[%clk 0:03:00]}  Bd7 {[%clk 0:03:01]} 5. Nf3 {[%clk 0:02:58]}  Bc6 {[%clk 0:03:02]} 6. Bd3 {[%clk 0:02:59]}  Nd7 {[%clk 0:03:02]} 7. O-O {[%clk 0:02:56]}  Ngf6 {[%clk 0:03:02]} 8. Ng3 {[%clk 0:02:57]}  g6 {[%clk 0:03:03]} 9. b3 {[%clk 0:02:56]}  Bg7 {[%clk 0:03:03]} 10. Ba3 {[%clk 0:02:57]}  Bf8 {[%clk 0:03:04]} 11. Bxf8 {[%clk 0:02:53]}  Kxf8 {[%clk 0:03:04]} 12. c4 {[%clk 0:02:53]}  h5 {[%clk 0:03:00]} 13. Re1 {[%clk 0:02:38]}  Bxf3 {[%clk 0:03:00]} 14. Qxf3 {[%clk 0:02:38]}  c6 {[%clk 0:03:01]} 15. h3 {[%clk 0:02:36]}  Kg7 {[%clk 0:03:00]} 16. Rad1 {[%clk 0:02:35]}  a5 {[%clk 0:03:00]} 17. Ne2 {[%clk 0:02:31]}  a4 {[%clk 0:02:58]} 18. b4 {[%clk 0:02:27]}  h4 {[%clk 0:02:50]} 19. Nf4 {[%clk 0:02:27]}  Nf8 {[%clk 0:02:44]} 20. b5 {[%clk 0:02:01]}  cxb5 {[%clk 0:02:41]} 21. d5 {[%clk 0:02:01]}  exd5 {[%clk 0:02:37]} 22. cxd5 {[%clk 0:01:57]}  Qd6 {[%clk 0:02:27]} 23. Bxb5 {[%clk 0:01:38]}  Ra5 {[%clk 0:02:25]} 24. Be8 {[%clk 0:01:14]}  g5 {[%clk 0:02:04]} 25. Ne6+ {[%clk 0:01:12]}  fxe6 {[%clk 0:02:04]} 26. dxe6 {[%clk 0:01:12]}  Qe7 {[%clk 0:02:04]} 27. Bf7 {[%clk 0:01:03]}  g4 {[%clk 0:01:56]} 28. hxg4 {[%clk 0:00:58]}  Rg5 {[%clk 0:01:56]} 29. Rd4 {[%clk 0:00:46]}  b5 {[%clk 0:01:53]} 30. a3 {[%clk 0:00:42]}  N8h7 {[%clk 0:01:52]} 31. Rf4 {[%clk 0:00:39]}  Rd8 {[%clk 0:01:45]} 32. Rf5 {[%clk 0:00:36]}  Rxg4 {[%clk 0:01:42]} 33. Rxb5 {[%clk 0:00:33]}  Ng5 {[%clk 0:01:36]} 34. Qe3 {[%clk 0:00:28]}  Nxf7 {[%clk 0:01:21]} 35. exf7 {[%clk 0:00:11]}  Qxe3 {[%clk 0:01:20]} 36. Rxe3 {[%clk 0:00:11]}  Kxf7 {[%clk 0:01:20]} 37. Rb7+ {[%clk 0:00:11]}  Kg6 {[%clk 0:01:19]} 38. Rb6 {[%clk 0:00:10]}  Rf4 {[%clk 0:01:15]} 39. Ra6 {[%clk 0:00:08]}  Rd1+ {[%clk 0:01:14]} 40. Kh2 {[%clk 0:00:08]}  Rxf2 {[%clk 0:01:14]} 41. Rxa4 {[%clk 0:00:08]}  Rdd2 {[%clk 0:01:04]} 42. Rxh4 {[%clk 0:00:07]}  Rxg2+ {[%clk 0:01:04]} 43. Kh1 {[%clk 0:00:07]}  Ng4 {[%clk 0:01:03]} 44. Re4 {[%clk 0:00:01]}  Kf5 {[%clk 0:01:00]} 45. Rb4 {[%clk 0:00:02]}  Ne3 {[%clk 0:00:50]} 46. Rhf4+ {[%clk 0:00:01]}  Kg5 {[%clk 0:00:50]} 47. Rfd4 {[%clk 0:00:01]}  Rh2+ {[%clk 0:00:49]} 48. Kg1 {[%clk 0:00:01]}  Rdg2# {[%clk 0:00:50]} 0-1


[Site "https://www.chess.com"]

[Event "Titled Tuesday Blitz April 19 Late 2022"]
[White "Zong, Davis"]
[Black "Romero Ruscalleda, Josep"]
[WhiteFideId "30903955"]
[BlackFideId "2231859"]
[WhiteElo "2061"]
[BlackElo "2307"]
[Result "1-0"]
[Round "11"]
[TimeControl "180+1"]
[Date "2022.04.19"]
[WhiteClock "0:00:09"]
[BlackClock "0:00:03"]

1. d4 {[%clk 0:03:00]}  g6 {[%clk 0:03:00]} 2. e4 {[%clk 0:03:00]}  Bg7 {[%clk 0:03:01]} 3. Nc3 {[%clk 0:03:00]}  d6 {[%clk 0:03:01]} 4. Be3 {[%clk 0:03:01]}  a6 {[%clk 0:03:00]} 5. a4 {[%clk 0:02:56]}  Nc6 {[%clk 0:02:58]} 6. Qd2 {[%clk 0:02:55]}  e5 {[%clk 0:02:56]} 7. d5 {[%clk 0:02:54]}  Nce7 {[%clk 0:02:56]} 8. h4 {[%clk 0:02:49]}  f5 {[%clk 0:02:55]} 9. f3 {[%clk 0:02:46]}  Nf6 {[%clk 0:02:54]} 10. Bh6 {[%clk 0:02:39]}  Bxh6 {[%clk 0:02:40]} 11. Qxh6 {[%clk 0:02:40]}  Nh5 {[%clk 0:02:40]} 12. Nge2 {[%clk 0:02:32]}  f4 {[%clk 0:02:30]} 13. g4 {[%clk 0:02:18]}  fxg3 {[%clk 0:02:28]} 14. O-O-O {[%clk 0:02:17]}  Ng8 {[%clk 0:02:18]} 15. Qe3 {[%clk 0:02:16]}  Qf6 {[%clk 0:02:15]} 16. Kb1 {[%clk 0:02:07]}  Ne7 {[%clk 0:02:13]} 17. Bh3 {[%clk 0:01:50]}  Bxh3 {[%clk 0:01:33]} 18. Rxh3 {[%clk 0:01:51]}  Nf4 {[%clk 0:01:29]} 19. Rxg3 {[%clk 0:01:41]}  Qxh4 {[%clk 0:01:28]} 20. Rg4 {[%clk 0:01:36]}  Qh2 {[%clk 0:01:01]} 21. Nxf4 {[%clk 0:01:29]}  exf4 {[%clk 0:01:00]} 22. Rxf4 {[%clk 0:01:12]}  Rf8 {[%clk 0:00:57]} 23. Rxf8+ {[%clk 0:01:03]}  Kxf8 {[%clk 0:00:56]} 24. f4 {[%clk 0:01:03]}  Kg8 {[%clk 0:00:47]} 25. e5 {[%clk 0:00:55]}  Nf5 {[%clk 0:00:42]} 26. Qe4 {[%clk 0:00:55]}  Re8 {[%clk 0:00:30]} 27. e6 {[%clk 0:00:47]}  Qf2 {[%clk 0:00:29]} 28. Qb4 {[%clk 0:00:44]}  b6 {[%clk 0:00:27]} 29. Ne4 {[%clk 0:00:39]}  Qe2 {[%clk 0:00:18]} 30. Re1 {[%clk 0:00:22]}  Qf3 {[%clk 0:00:05]} 31. Nf6+ {[%clk 0:00:22]}  Kf8 {[%clk 0:00:05]} 32. Nxe8 {[%clk 0:00:22]}  Kxe8 {[%clk 0:00:06]} 33. Qc4 {[%clk 0:00:22]}  Qf2 {[%clk 0:00:03]} 34. Rh1 {[%clk 0:00:09]} 1-0